bitfinex/quotes_ETHUSD_20220103
["timestamp","ask_amount","ask_price","bid_price","bid_amount"]
[1641176216132,0.65997,3787.1,3787.0,4.53791081]
[1641176216331,0.65997,3787.1,3787.0,4.5285989]
[1641176217131,0.65997,3787.1,3787.0,1.79729616]
[1641176217631,0.65997,3787.1,3787.0,4.56077449]
[1641176217836,0.65997,3787.1,3787.0,1.79729616]
[1641176218039,0.65997,3787.1,3786.9,2.45726616]
[1641176218535,0.65997,3787.1,3787.0,4.5199267]
[1641176218733,0.65997,3787.1,3787.0,1.79729616]
[1641176222903,0.60997,3787.1,3787.0,1.79729616]
[1641176224102,0.60997,3787.1,3786.9,2.45726616]
[1641176228664,0.60997,3787.1,3786.9,0.65997]
[1641176230909,0.60997,3787.1,3787.0,0.381]
[1641176231108,5.93697,3787.2,3787.0,0.381]
[1641176231109,5.277,3787.2,3787.0,0.381]
[1641176231310,5.277,3787.2,3787.1,16.05986]
[1641176231510,5.277,3787.2,3787.1,16.44086]
[1641176231707,5.277,3787.2,3787.1,22.19886]
[1641176232110,4.6651,3787.2,3787.1,22.19886]
[1641176232407,0.05287707,3787.9,3787.8,7.79645539]
[1641176232607,0.05287707,3787.9,3787.8,2.38722539]
[1641176233211,1.31955,3788.6,3787.8,2.38722539]
[1641176233609,1.31955,3788.3,3787.8,2.38722539]
[1641176233812,0.05320425,3788.2,3788.0,1.31955]
[1641176234152,0.05320425,3788.2,3788.1,1.72776813]
[1641176234552,0.05945691,3788.2,3788.1,1.72776813]
[1641176234952,1.87772396,3788.2,3788.1,1.72776813]
[1641176235354,1.82451971,3788.2,3788.1,2.38753813]
[1641176235758,0.00625266,3788.2,3788.1,2.38753813]
[1641176236453,1.82451971,3788.2,3788.1,2.38753813]
[1641176237455,1.82451971,3788.2,3788.1,1.04077]
[1641176238428,1.82451971,3788.2,3788.1,3.64077]
[1641176240329,0.00625266,3788.2,3788.1,3.94077]
[1641176240528,0.00625266,3788.2,3788.1,20.34077]
[1641176241775,0.00625266,3788.2,3788.1,22.19237169]
[1641176242172,0.00625266,3788.2,3788.1,22.2225043]
[1641176243373,0.00625266,3788.2,3788.1,23.37897142]
[1641176244879,0.00625266,3788.2,3788.1,28.13697142]
[1641176245706,0.00625266,3788.2,3788.1,29.47565033]
[1641176248609,0.00625266,3788.2,3788.1,14.07565033]
[1641176249166,0.00625266,3788.2,3788.1,14.08403727]
[1641176249862,0.00625266,3788.2,3788.1,10.89375667]
[1641176250261,0.00625266,3788.2,3788.1,10.85523712]
[1641176250464,0.00625266,3788.2,3788.1,12.19391603]
[1641176252067,0.00625266,3788.2,3788.1,9.73744891]
[1641176252267,0.00625266,3788.2,3788.1,4.97944891]
[1641176252665,0.00625266,3788.2,3788.1,4.31967891]
[1641176253127,0.00625266,3788.2,3788.1,6.0931985]
[1641176253329,0.00625266,3788.2,3788.1,4.75451959]
[1641176253628,0.00625266,3788.2,3788.1,4.72394474]
[1641176254827,0.00625266,3788.2,3788.1,20.42394474]
[1641176255427,0.00625266,3788.2,3788.1,5.02394474]
[1641176255627,0.00625266,3788.2,3788.1,6.36262365]
[1641176255827,0.00625266,3788.2,3788.1,21.76262365]
[1641176256028,0.00625266,3788.2,3788.1,6.36262365]
[1641176256880,0.00625266,3788.2,3788.1,7.36262365]
[1641176261216,0.00625266,3788.2,3788.1,6.02394474]
[1641176261612,0.00625266,3788.2,3788.1,4.94082]
[1641176261917,0.00625266,3788.2,3788.1,6.27929252]
[1641176263415,0.00625266,3788.2,3788.1,4.94082]
[1641176264462,1.31942,3788.7,3788.1,4.94082]
[1641176264666,1.31942,3788.7,3788.3,0.65969]
[1641176264862,0.00852636,3788.6,3788.4,0.381]
[1641176265062,0.00852636,3788.6,3788.4,0.681]
[1641176265270,0.00795793,3788.5,3788.4,0.681]
[1641176265663,0.00795793,3788.5,3788.4,4.531]
[1641176266462,0.00795793,3788.5,3788.4,0.681]
[1641176266664,0.00795793,3788.5,3788.4,2.00033]
[1641176267265,0.00795793,3788.5,3788.4,2.00392061]
[1641176267562,0.00795793,3788.5,3788.4,3.00392061]
[1641176267762,0.00795793,3788.5,3788.4,6.45392061]
[1641176269022,0.00795793,3788.5,3788.4,8.3055223]
[1641176269517,0.00795793,3788.5,3788.4,4.8555223]
[1641176271686,0.00795793,3788.5,3788.4,3.8555223]
[1641176272479,0.00795793,3788.5,3788.4,3.5555223]
[1641176274181,0.00795793,3788.5,3788.4,1.70392061]
[1641176280267,0.00795793,3788.5,3788.4,2.00392061]
[1641176280668,0.00795793,3788.5,3788.4,1.70392061]
[1641176281067,0.00795793,3788.5,3788.4,2.00392061]
[1641176282576,0.00795793,3788.5,3788.4,7.33906013]
[1641176283020,0.00795793,3788.5,3788.4,18.43906013]
[1641176283220,0.00795793,3788.5,3788.4,21.13263657]
[1641176284020,0.00795793,3788.5,3788.4,5.73263657]
[1641176284419,0.00795793,3788.5,3788.4,22.98423826]
[1641176284824,0.00795793,3788.5,3788.4,20.29066182]
[1641176285327,6.21,3789.5,3788.4,25.04866182]
[1641176285522,6.16,3789.5,3788.9,1.0552694]
[1641176285821,6.16,3789.5,3789.0,16.081]
[1641176285822,0.00454739,3789.3,3789.0,16.081]
[1641176286224,0.00397897,3789.2,3789.1,1.00083691]
[1641176286421,0.00397897,3789.2,3789.1,2.70090691]
[1641176287485,0.00397897,3789.2,3789.1,4.5525086]
[1641176287884,0.00397897,3789.2,3789.1,2.70090691]
[1641176288783,0.00397897,3789.2,3789.1,5.30090691]
[1641176291123,0.00397897,3789.2,3789.1,7.0973727]
[1641176293032,0.00397897,3789.2,3789.1,7.10189392]
[1641176298131,0.00397897,3789.2,3789.1,16.17035498]
[1641176298526,0.05340581,3789.5,3789.2,24.2836785]
[1641176298726,0.05340581,3789.5,3789.3,3.97243443]
[1641176298927,0.05340581,3789.5,3789.4,16.05333865]
[1641176299128,0.05340581,3789.5,3789.4,8.51687517]
[1641176299327,0.05340581,3789.5,3789.4,9.17627517]
[1641176299328,0.00170527,3789.5,3789.4,9.17627517]
[1641176299534,0.00170527,3789.5,3789.4,9.14373865]
[1641176299728,0.00170527,3789.5,3789.4,9.17935445]
[1641176300128,0.00170527,3789.5,3789.4,27.27364801]
[1641176300931,0.00170527,3789.5,3789.4,30.1252497]
[1641176301328,0.00170527,3789.5,3789.4,29.1252497]
[1641176302576,0.00170527,3789.5,3789.4,30.1252497]
[1641176302971,0.5059012,3790.0,3789.6,0.3955862]
[1641176303170,0.5059012,3790.0,3789.7,20.539]
[1641176303370,0.5059012,3790.0,3789.8,16.09134896]
[1641176303574,0.5059012,3790.0,3789.9,28.089]
[1641176303773,7.95884737,3791.0,3790.3,1.38303302]
[1641176303972,7.95884737,3791.0,3790.4,0.381]
[1641176304271,7.95884737,3791.0,3790.6,0.3955519]
[1641176304470,7.95884737,3791.0,3790.7,1.69954]
[1641176304670,6.21,3791.0,3790.8,0.381]
[1641176304870,6.16,3791.0,3790.8,0.381]
[1641176305072,6.21,3791.0,3790.8,0.381]
[1641176305521,6.86927,3791.0,3790.9,0.65928]
[1641176305723,6.86927,3791.0,3790.9,1.04028]
[1641176305724,17.42067,3791.0,3790.9,1.04028]
[1641176305919,17.42919635,3791.0,3790.9,1.04028]
[1641176306419,16.76992635,3791.0,3790.9,1.04028]
[1641176308724,16.76992635,3791.0,3790.9,1.34028]
[1641176309478,16.76992635,3791.0,3790.9,3.94028]
[1641176310474,10.55992635,3791.0,3790.9,3.94028]
[1641176310875,10.55992635,3791.0,3790.9,5.28719998]
[1641176312775,10.55992635,3791.0,3790.9,4.98719998]
[1641176314820,10.55992635,3791.0,3790.9,5.28719998]
[1641176316020,10.55992635,3791.0,3790.9,4.98719998]
[1641176316424,10.55992635,3791.0,3790.9,3.64028]
[1641176318173,10.42223414,3791.0,3790.9,3.64028]
[1641176318772,10.42223414,3791.0,3790.9,3.64474369]
[1641176321023,11.76441016,3791.0,3790.9,3.64474369]
[1641176321629,10.42223414,3791.0,3790.9,3.64474369]
[1641176322225,10.42223414,3791.0,3790.9,4.04025849]
[1641176324570,10.42223414,3791.0,3790.9,5.83598974]
[1641176325565,10.37223414,3791.0,3790.9,5.83598974]
[1641176326365,10.37223414,3791.0,3790.9,21.23598974]
[1641176327566,10.37223414,3791.0,3790.9,23.54845951]
[1641176330423,10.37223414,3791.0,3790.9,21.75272826]
[1641176332471,10.23455093,3791.0,3790.9,23.05272826]
[1641176334777,10.18455093,3791.0,3790.9,23.05272826]
[1641176335917,10.17602458,3791.0,3790.9,21.75272826]
[1641176336115,10.17602458,3791.0,3790.9,23.05272826]
[1641176336517,9.65912459,3791.0,3790.9,23.05272826]
[1641176339018,9.65912459,3791.0,3790.9,22.05272826]
[1641176339285,9.65912459,3791.0,3790.9,21.75272826]
[1641176339483,9.65912459,3791.0,3790.9,22.05272826]
[1641176339683,9.65912459,3791.0,3790.9,23.05272826]
[1641176340583,9.52144393,3791.0,3790.9,24.8424922]
[1641176344229,4.24858393,3791.0,3790.9,24.87956351]
[1641176344427,4.24858393,3791.0,3790.9,24.88135753]
[1641176344827,0.05340324,3791.4,3791.1,15.4]
[1641176345026,0.05340324,3791.4,3791.3,16.05908]
[1641176345234,1.784682,3792.0,3791.3,16.74008]
[1641176345428,1.784682,3792.0,3791.9,1.05321488]
[1641176346775,1.784682,3792.0,3791.9,1.71231488]
[1641176349672,1.784682,3792.0,3791.9,2.01231488]
[1641176350074,1.784682,3792.0,3791.9,4.61231488]
[1641176351337,1.784682,3792.0,3791.9,4.31231488]
[1641176352539,1.784682,3792.0,3791.9,4.61231488]
[1641176352740,1.784682,3792.0,3791.9,4.99331488]
[1641176354041,1.784682,3792.0,3791.9,4.69331488]
[1641176354273,1.784682,3792.0,3791.9,3.6401]
[1641176358124,1.784682,3792.0,3791.9,3.9401]
[1641176358922,1.734682,3792.0,3791.9,3.9401]
[1641176360627,1.734682,3792.0,3791.9,20.37395704]
[1641176360925,1.734682,3792.0,3791.9,25.13195704]
[1641176362378,1.734682,3792.0,3791.9,28.78586758]
[1641176362578,6.21,3792.6,3792.1,15.4]
[1641176362779,6.21,3792.6,3792.3,0.65894]
[1641176362979,0.0170527,3792.5,3792.4,5.681]
[1641176363179,0.0170527,3792.5,3792.4,0.71614106]
[1641176363380,0.0170527,3792.5,3792.4,0.681]
[1641176363581,0.0170527,3792.5,3792.4,0.71820334]
[1641176364185,0.0170527,3792.5,3792.4,16.11820334]
[1641176365437,0.0170527,3792.5,3792.4,18.43067311]
[1641176366638,0.0170527,3792.5,3792.4,19.43067311]
[1641176367039,0.0170527,3792.5,3792.4,20.77211388]
[1641176368442,0.0170527,3792.5,3792.4,19.43067311]
[1641176370889,0.0170527,3792.5,3792.4,20.77211388]
[1641176371598,0.0170527,3792.5,3792.4,19.43067311]
[1641176374430,0.0170527,3792.5,3792.4,24.18867311]
[1641176375732,0.0170527,3792.5,3792.4,8.75767586]
[1641176375931,0.0170527,3792.5,3792.4,7.79381232]
[1641176376131,0.0170527,3792.5,3792.4,7.78805365]
[1641176376531,0.0170527,3792.5,3792.4,7.45767586]
[1641176376810,0.0170527,3792.5,3792.4,2.69967586]
[1641176377206,0.0170527,3792.5,3792.4,0.38720609]
[1641176378208,1.34819158,3792.5,3792.4,0.38720609]
[1641176378910,1.34819158,3792.5,3792.4,0.00620609]
[1641176379508,0.0170527,3792.5,3792.4,0.00620609]
[1641176379711,2.98482474,3792.5,3792.4,0.00620609]
[1641176379909,0.0170527,3792.5,3792.4,0.00620609]
[1641176380113,0.0170527,3792.5,3792.4,0.66531609]
[1641176381628,1.2850327,3792.7,3792.4,0.66531609]
[1641176382028,4.24751763,3792.7,3792.4,0.66531609]
[1641176382527,1.2850327,3792.7,3792.4,0.00620609]
[1641176383127,1.33585668,3792.6,3792.4,0.00620609]
[1641176383929,1.33585668,3792.6,3792.4,0.66530609]
[1641176386083,1.33585668,3792.6,3792.4,0.00620609]
[1641176387935,1.33585668,3792.6,3792.4,0.66530609]
[1641176391040,1.2850327,3792.7,3792.4,0.66530609]
[1641176392477,1.33588517,3792.6,3792.4,0.66530609]
[1641176393277,6.45402517,3792.6,3792.4,0.66530609]
[1641176394278,2.65402517,3792.6,3792.4,0.66530609]
[1641176394479,1.33588517,3792.5,3792.4,0.66530609]
[1641176394879,1.31814,3792.6,3792.4,0.66530609]
[1641176395828,1.41241562,3792.5,3792.4,0.66530609]
[1641176396428,1.31814,3792.6,3792.4,0.66530609]
[1641176397232,1.2850327,3792.7,3792.4,0.66530609]
[1641176398230,1.41127264,3792.6,3792.4,0.66530609]
[1641176398433,1.36127264,3792.6,3792.5,0.381]
[1641176399391,0.65894,3792.9,3792.5,0.381]
[1641176399593,0.65894,3792.9,3792.6,0.65891]
[1641176399801,0.00170527,3792.8,3792.7,0.7763455]
[1641176400194,0.00170527,3792.8,3792.7,1.0763455]
[1641176400995,0.00170527,3792.8,3792.7,0.381]
[1641176402407,0.00170527,3792.8,3792.7,0.681]
[1641176403026,0.56064527,3792.9,3792.7,0.681]
[1641176403239,0.56064527,3792.9,3792.7,1.33994]
[1641176409989,0.46064527,3792.9,3792.7,1.33994]
[1641176410928,0.46064527,3792.9,3792.7,3.93994]
[1641176411328,0.46064527,3792.9,3792.7,3.281]
[1641176412930,0.46064527,3792.9,3792.7,6.01376318]
[1641176413128,0.46064527,3792.9,3792.7,3.281]
[1641176413331,0.46064527,3792.9,3792.7,6.01794052]
[1641176413529,0.46064527,3792.9,3792.8,1.0]
[1641176413732,0.46064527,3792.9,3792.8,4.12148314]
[1641176414576,0.46064527,3792.9,3792.8,1.381]
[1641176415383,0.46064527,3792.9,3792.8,1.41647944]
[1641176415581,3.2946363,3793.7,3793.4,8.8574]
[1641176415783,1.97694,3793.7,3793.6,4.758]
[1641176415978,1.97694,3793.7,3793.6,5.139]
[1641176416381,1.97694,3793.7,3793.6,6.139]
[1641176417582,1.97694,3793.7,3793.6,7.47896063]
[1641176418429,1.97694,3793.7,3793.6,6.139]
[1641176418631,1.97694,3793.7,3793.6,5.139]
[1641176418831,1.97694,3793.7,3793.4,1.84598769]
[1641176419054,0.65889,3793.6,3793.5,0.381]
[1641176419236,0.66343739,3793.6,3793.5,0.381]
[1641176419429,0.66343739,3793.6,3793.1,2.01495261]
[1641176419630,1.31792,3793.5,3793.3,1.78622302]
[1641176419830,1.32189897,3793.5,3793.0,2.01495261]
[1641176420030,0.66236054,3793.4,3793.1,0.381]
[1641176420228,1.3178996,3793.3,3793.1,0.381]
[1641176420429,1.3178996,3793.3,3793.0,0.3]
[1641176420430,1.32074172,3793.3,3793.0,0.3]
[1641176420635,1.32074172,3793.3,3792.8,0.0571]
[1641176420636,0.0022737,3793.2,3793.1,0.381]
[1641176421033,0.0022737,3793.2,3793.1,0.681]
[1641176421231,0.0022737,3793.2,3793.0,2.5368]
[1641176421430,0.0022737,3793.2,3793.0,2.4341]
[1641176421689,0.0022737,3793.2,3792.4,3.6655]
[1641176421690,0.6590495,3792.9,3792.4,3.6655]
[1641176421989,0.6590495,3792.9,3792.5,0.00170527]
[1641176421990,1.3181,3792.8,3792.5,0.00170527]
[1641176422292,1.3181,3792.8,3792.4,0.00227369]
[1641176422891,1.31817,3792.6,3792.4,0.00227369]
[1641176423092,1.977179,3792.6,3792.4,0.00227369]
[1641176423890,0.6591,3792.5,3792.4,0.00227369]
[1641176424889,0.6591,3792.5,3792.2,0.00341054]
[1641176425093,0.6591176,3792.4,3792.2,0.00341054]
[1641176425290,1.3182712,3792.3,3792.2,0.00341054]
[1641176425541,1.9774112,3792.3,3792.2,0.00341054]
[1641176426137,1.9774112,3792.3,3792.2,0.00742261]
[1641176426339,1.9774112,3792.3,3792.2,0.00341054]
[1641176426941,1.9774112,3792.3,3792.1,0.681]
[1641176427240,3.2957312,3792.3,3792.1,0.681]
[1641176427440,0.65918,3792.1,3791.9,1.0]
[1641176427641,0.65918,3792.1,3792.0,0.381]
[1641176427841,0.65918,3792.1,3792.0,0.38213685]
[1641176429042,2.63677,3792.1,3791.8,2.6928528]
[1641176429289,3.9551358,3792.1,3791.9,0.381]
[1641176430091,3.9551358,3792.1,3792.0,1.79531551]
[1641176430289,3.2959358,3792.1,3792.0,0.381]
[1641176430891,0.65919,3791.9,3791.8,0.381]
[1641176431290,0.65919,3791.9,3791.8,0.38213684]
[1641176431889,0.036753,3792.0,3791.8,0.68213684]
[1641176432491,0.036753,3792.0,3791.8,3.37498964]
[1641176432695,0.65919,3791.9,3791.8,3.37498964]
[1641176433143,0.65919,3791.9,3791.8,0.68213684]
[1641176438902,0.65919,3791.9,3791.8,2.02262773]
[1641176439297,0.65919,3791.9,3791.8,1.72262773]
[1641176439498,4.33326748,3791.9,3791.8,1.34162773]
[1641176439696,6.16851,3791.9,3791.8,1.34162773]
[1641176439896,0.65919,3791.9,3790.8,7.2304]
[1641176440095,3.02722765,3792.1,3790.8,7.2304]
[1641176440096,0.65937,3791.3,3790.8,7.2304]
[1641176440296,1.73711609,3791.3,3791.0,0.00454739]
[1641176440545,1.73711609,3791.3,3790.9,3.05324451]
[1641176440546,0.65937,3791.2,3790.9,3.05324451]
[1641176440747,0.66050684,3791.2,3790.9,3.05324451]
[1641176440950,0.66050684,3791.2,3790.6,0.381]
[1641176441145,0.65942,3791.0,3790.6,0.381]
[1641176441346,0.65942,3791.0,3790.9,2.6]
[1641176441650,0.65942,3791.0,3790.6,0.381]
[1641176441651,1.97823,3791.0,3790.6,0.381]
[1641176441847,3.9564659,3791.0,3790.6,0.381]
[1641176442048,0.00511582,3790.9,3790.6,0.381]
[1641176442246,0.00511582,3790.9,3790.6,0.38458848]
[1641176442447,0.00454739,3790.8,3790.6,0.38458848]
[1641176442648,0.66397739,3790.8,3790.6,0.38108848]
[1641176442952,0.66397739,3790.8,3790.1,3.67631743]
[1641176442953,0.6594922,3790.5,3790.1,0.381]
[1641176443351,0.0022737,3790.4,3790.1,0.381]
[1641176443648,0.0022737,3790.4,3789.6,5.758]
[1641176443649,0.00170528,3790.3,3789.6,5.758]
[1641176443849,1.31914,3790.2,3789.7,1.72314244]
[1641176444049,0.6595603,3790.1,3789.7,1.72484771]
[1641176444286,1.97983685,3790.2,3789.7,1.72484771]
[1641176444481,1.97983685,3790.2,3789.7,1.67484771]
[1641176445483,0.65957,3790.1,3789.7,1.67484771]
[1641176445684,1.31896,3790.0,3789.7,1.67484771]
[1641176445884,0.65947,3789.9,3789.7,1.67484771]
[1641176446287,0.65947,3789.9,3789.7,17.07484771]
[1641176446485,0.65947,3789.9,3789.7,17.44076514]
[1641176446685,0.65947,3789.9,3789.7,2.04076514]
[1641176447287,0.65947,3789.9,3789.7,17.44076514]
[1641176447485,0.00113685,3790.2,3789.7,23.19876514]
[1641176448532,0.00113685,3790.2,3789.8,2.68190267]
[1641176448732,0.00113685,3790.2,3789.9,15.81150655]
[1641176448930,0.00113685,3790.2,3789.9,15.87742398]
[1641176449131,0.00113685,3790.2,3790.0,15.46591743]
[1641176449331,0.00113685,3790.2,3790.1,24.681]
[1641176449535,0.00113685,3790.2,3790.1,25.02020667]
[1641176450435,0.00113685,3790.2,3790.1,26.59746242]
[1641176450836,0.00113685,3790.2,3790.1,17.69746242]
[1641176452285,0.00113685,3790.2,3790.1,2.29746242]
[1641176453486,0.00113685,3790.2,3790.1,17.69746242]
[1641176453685,0.00113685,3790.2,3790.1,2.29746242]
[1641176453885,0.00113685,3790.2,3790.1,0.72020667]
[1641176454487,0.00113685,3790.2,3790.1,16.12020667]
[1641176454987,0.00113685,3790.2,3790.1,17.69746242]
[1641176456446,0.00113685,3790.2,3790.1,2.29746242]
[1641176457446,0.00113685,3790.2,3790.1,2.46888955]
[1641176459042,0.00113685,3790.2,3790.1,2.16888955]
[1641176459284,0.00113685,3790.2,3790.1,0.381]
[1641176464033,0.00113685,3790.2,3790.1,0.681]
[1641176464630,0.00113685,3790.2,3790.1,0.381]
[1641176467786,0.00113685,3790.2,3790.1,0.38458905]
[1641176468579,0.00113685,3790.2,3790.1,3.07864562]
[1641176469182,0.00113685,3790.2,3790.1,0.38458905]
[1641176470733,0.00113685,3790.2,3790.1,0.68458905]
[1641176472134,0.00113685,3790.2,3790.1,0.38458905]
[1641176472537,0.00113685,3790.2,3790.1,0.68458905]
[1641176473637,0.00113685,3790.2,3790.1,0.38458905]
[1641176474036,0.65944,3790.3,3790.1,0.38458905]
[1641176479037,1.3187813,3790.4,3790.1,0.38458905]
[1641176479038,0.65933,3790.4,3790.1,0.38458905]
[1641176479538,0.00170528,3790.3,3790.1,0.38458905]
[1641176479937,0.00113685,3790.2,3790.1,0.38458905]
[1641176509834,0.00113685,3790.2,3790.1,0.33458905]
[1641176510235,1.31895,3790.3,3790.1,0.33458905]
[1641176511236,1.31895,3790.3,3790.2,1.79449626]
[1641176511683,1.32065528,3790.3,3790.1,0.33458905]
[1641176512083,0.00113685,3790.2,3790.1,0.33458905]
[1641176513984,0.00113685,3790.2,3790.1,3.02864562]
[1641176514787,0.00113685,3790.2,3790.1,0.33458905]
[1641176515434,0.00113685,3790.2,3790.1,3.02864562]
[1641176516834,0.00113685,3790.2,3790.1,0.33458905]
[1641176521696,0.00113685,3790.2,3790.1,2.12861308]
[1641176525454,0.00113685,3790.2,3790.1,1.79402403]
[1641176529884,0.00113685,3790.2,3790.0,1.79402403]
[1641176530283,0.66066685,3790.2,3790.0,1.79402403]
[1641176534185,0.66066685,3790.2,3790.1,1.79761307]
[1641176542092,0.65953,3790.2,3790.1,1.79761307]
[1641176543093,0.65953,3790.2,3790.1,0.00358904]
[1641176547139,0.65953,3790.2,3790.1,1.79958947]
[1641176557505,0.65947,3790.3,3790.1,5.53218771]
[1641176557707,0.6594,3790.7,3790.2,7.84280773]
[1641176557906,0.05414643,3790.8,3790.3,5.139]
[1641176558109,0.00397897,3790.7,3790.3,6.54269024]
[1641176558306,0.00397897,3790.7,3790.4,3.15171112]
[1641176558506,0.00341055,3790.6,3790.5,0.681]
[1641176558711,0.00341055,3790.6,3790.5,2.40628743]
[1641176558905,0.00341055,3790.6,3790.5,1.40628743]
[1641176559206,0.00341055,3790.6,3790.5,2.40628743]
[1641176559809,0.00341055,3790.6,3790.5,24.48211831]
[1641176560668,0.00341055,3790.6,3790.5,29.24011831]
[1641176560864,0.00341055,3790.6,3790.5,25.65112852]
[1641176561064,0.00341055,3790.6,3790.5,27.31842586]
[1641176561268,0.00053735,3790.6,3790.5,27.31842586]
[1641176562567,0.00053735,3790.6,3790.5,11.91842586]
[1641176563366,0.00053735,3790.6,3790.5,10.25112852]
[1641176567416,0.00053735,3790.6,3790.5,7.16787602]
[1641176567615,0.00053735,3790.6,3790.5,5.86787602]
[1641176567815,0.00053735,3790.6,3790.5,6.10195859]
[1641176568647,0.00053735,3790.6,3790.5,1.34395859]
[1641176570551,0.65939,3790.8,3790.5,1.34395859]
[1641176570552,0.60992735,3790.8,3790.5,1.34395859]
[1641176570750,0.60992735,3790.8,3790.6,0.65941]
[1641176570948,0.60992735,3790.8,3790.6,1.04041]
[1641176571349,0.60992735,3790.8,3790.7,2.69329507]
[1641176571798,0.61106419,3790.8,3790.7,2.69329507]
[1641176573293,0.61106419,3790.8,3790.7,2.99329507]
[1641176573492,0.61106419,3790.8,3790.7,0.3]
[1641176573893,0.61106419,3790.8,3790.6,1.34041]
[1641176575947,0.61106419,3790.8,3790.6,1.04041]
[1641176576147,0.61106419,3790.8,3790.6,0.381]
[1641176577147,0.61106419,3790.8,3790.6,1.04042]
[1641176577547,0.61106419,3790.8,3790.6,3.73385917]
[1641176579506,0.61106419,3790.8,3790.6,1.04042]
[1641176579903,0.61106419,3790.8,3790.6,1.34042]
[1641176583853,0.61106419,3790.8,3790.6,1.04042]
[1641176584857,0.60947825,3790.8,3790.6,1.04042]
[1641176588795,0.60947825,3790.8,3790.7,1.79566512]
[1641176589295,0.60947825,3790.8,3790.6,1.04042]
[1641176594900,0.60947825,3790.8,3790.6,2.82967046]
[1641176595901,0.00113684,3790.8,3790.6,2.82967046]
[1641176598245,0.66051684,3790.8,3790.6,2.82967046]
[1641176599948,0.66051684,3790.8,3790.6,1.04042]
[1641176601810,0.65938,3790.8,3790.6,1.04042]
[1641176603608,0.65938,3790.8,3790.6,1.34042]
[1641176604608,0.65938,3790.8,3790.6,3.12967046]
[1641176606858,0.05414595,3790.9,3790.7,0.65935]
[1641176607259,0.65935,3791.0,3790.7,0.65935]
[1641176607658,0.00170527,3790.9,3790.7,0.65935]
[1641176607859,0.00170527,3790.9,3790.8,1.12671107]
[1641176608061,0.65935,3791.0,3790.8,4.50911927]
[1641176608265,0.0541456,3791.4,3790.8,4.50911927]
[1641176608266,0.0541456,3791.4,3790.9,3.04295718]
[1641176608560,0.0541456,3791.4,3791.1,0.95927]
[1641176608760,0.0541456,3791.4,3791.2,0.381]
[1641176609197,6.21,3792.0,3791.2,0.381]
[1641176609698,0.6665895,3791.9,3791.2,0.381]
[1641176609897,0.6665895,3791.9,3791.2,1.04024]
[1641176610097,0.00682108,3791.8,3791.2,1.04024]
[1641176610499,0.00625265,3791.7,3791.3,2.71692605]
[1641176610697,0.00625265,3791.7,3791.4,1.31843]
[1641176610903,0.00568423,3791.6,3791.4,1.7798644]
[1641176611101,0.00568423,3791.6,3791.4,3.56911486]
[1641176611401,1.91757328,3791.7,3791.5,0.65922]
[1641176611601,1.91757328,3791.7,3791.5,0.95922]
[1641176611800,0.00568423,3791.6,3791.5,0.95922]
[1641176612200,0.0073895,3791.9,3791.5,0.95922]
[1641176612400,0.0073895,3791.9,3791.4,3.56911486]
[1641176612401,0.0073895,3791.9,3791.7,0.65921]
[1641176612601,0.00682108,3791.8,3791.7,0.65921]
[1641176613062,1.9240772,3791.8,3791.7,0.65921]
[1641176613468,0.00682108,3791.8,3791.7,0.65921]
[1641176614364,1.9240772,3791.8,3791.7,0.65921]
[1641176614863,1.9240772,3791.8,3791.6,0.681]
[1641176615064,2.5833472,3791.8,3791.6,0.681]
[1641176615265,0.00625265,3791.7,3791.6,0.681]
[1641176615864,1.87350877,3791.7,3791.6,0.681]
[1641176618897,1.87350877,3791.7,3791.6,0.381]
[1641176619897,1.87350877,3791.7,3791.6,3.881]
[1641176620098,1.87350877,3791.7,3791.6,0.381]
[1641176620554,0.65927,3791.8,3791.6,0.381]
[1641176623158,0.65927,3791.8,3791.6,0.681]
[1641176623663,0.65927,3791.8,3791.6,0.381]
[1641176625899,0.65927,3791.8,3791.6,0.38482031]
[1641176632807,0.65919,3791.9,3791.7,0.65919]
[1641176633405,0.66032685,3791.9,3791.7,0.65919]
[1641176634510,0.66032685,3791.9,3791.6,0.00382031]
[1641176634707,1.31957685,3791.9,3791.6,0.00382031]
[1641176635008,1.31957685,3791.9,3791.6,3.50382031]
[1641176635454,1.31957685,3791.9,3791.6,0.00382031]
[1641176635855,1.31957685,3791.9,3791.6,0.66307031]
[1641176638558,5.21846,3791.8,3791.6,0.66307031]
[1641176639808,1.31846,3791.8,3791.6,0.66307031]
[1641176641414,0.00113685,3791.9,3791.7,3.13869507]
[1641176641611,0.00113685,3791.9,3791.8,3.37703837]
[1641176641811,0.00113685,3791.9,3791.8,1.34011]
[1641176642411,0.00113685,3791.9,3791.8,1.04011]
[1641176646458,0.00113685,3791.9,3791.8,2.38262571]
[1641176648001,0.00113685,3791.9,3791.8,5.06638282]
[1641176648201,0.00113685,3791.9,3791.8,2.38262571]
[1641176648601,0.00113685,3791.9,3791.8,5.08882304]
[1641176648804,0.00113685,3791.9,3791.8,5.1016055]
[1641176649005,0.00113685,3791.9,3791.8,2.38262571]
[1641176650550,0.00113685,3791.9,3791.8,5.08424795]
[1641176650753,0.00113685,3791.9,3791.8,1.04011]
[1641176651361,3.0,3791.9,3791.8,0.64791439]
[1641176651557,3.05595593,3791.9,3791.6,1.78925046]
[1641176651755,5.75,3791.8,3791.5,1.66729734]
[1641176651955,3.3,3791.7,3791.3,4.03585233]
[1641176652156,3.3,3791.7,3791.3,1.34241316]
[1641176652355,4.4,3791.5,3791.3,1.34241316]
[1641176652555,5.24523472,3791.6,3791.3,1.21661316]
[1641176652761,2.8,3791.5,3791.0,3.51132578]
[1641176652959,0.65951,3791.2,3791.0,3.51132578]
[1641176653159,0.65951,3791.2,3791.1,0.00170527]
[1641176653557,3.51574006,3791.2,3791.0,0.66900261]
[1641176653758,2.8963585,3791.1,3790.0,4.74134016]
[1641176653958,1.31902,3790.7,3790.0,4.74134016]
[1641176654203,0.65951,3790.7,3790.1,0.00568423]
[1641176655602,0.6595,3790.4,3790.0,0.00625266]
[1641176655802,0.6595,3790.4,3790.0,0.38725266]
[1641176656404,0.6595,3790.4,3790.0,1.79650338]
[1641176656603,0.6595,3790.3,3790.1,0.00358895]
[1641176656903,0.6595,3790.3,3790.2,0.00511581]
[1641176657304,2.3,3790.7,3790.2,0.00511581]
[1641176657702,0.65944,3790.6,3790.2,0.00511581]
[1641176658852,0.65944,3790.6,3790.4,0.65941]
[1641176659252,0.65944,3790.6,3790.5,0.00341054]
[1641176659552,2.3,3790.7,3790.5,0.00341054]